[Event "Late-Titled-Tuesday-Blitz-August-29-2023"]
[Site "Chess.com"]
[Date "2023.08.29"]
[Round "1"]
[White "MFatigue"]
[Black "Duhless"]
[Result "0-1"]
[WhiteElo "2506"]
[BlackElo "3024"]
[TimeControl "180+1"]
[EndTime "14:06:30 PDT"]
[Termination "Duhless won by resignation"]

1. e4 {[%clk 0:03:00.9]} 1... c6 {[%clk 0:03:00.2]} 2. Bc4 {[%clk 0:03:00.3]}
2... d5 {[%clk 0:03:01.1]} 3. Bb3 {[%clk 0:03:00.9]} 3... dxe4 {[%clk
0:02:59.8]} 4. Qh5 {[%clk 0:03:01.5]} 4... e6 {[%clk 0:02:56]} 5. Nc3 {[%clk
0:03:01.7]} 5... Nf6 {[%clk 0:02:55.2]} 6. Qh4 {[%clk 0:03:02.2]} 6... a5 {[%clk
0:02:52]} 7. a4 {[%clk 0:02:57.5]} 7... Nbd7 {[%clk 0:02:51.7]} 8. Nxe4 {[%clk
0:02:53.1]} 8... Nxe4 {[%clk 0:02:51.4]} 9. Qxe4 {[%clk 0:02:54]} 9... Nc5
{[%clk 0:02:52]} 10. Qe3 {[%clk 0:02:54.6]} 10... Nxb3 {[%clk 0:02:44.2]} 11.
Qxb3 {[%clk 0:02:55.5]} 11... Qd5 {[%clk 0:02:45]} 12. Qxd5 {[%clk 0:02:51.5]}
12... cxd5 {[%clk 0:02:42.7]} 13. d4 {[%clk 0:02:49.6]} 13... Bd7 {[%clk
0:02:42.1]} 14. c3 {[%clk 0:02:49.2]} 14... f6 {[%clk 0:02:40.5]} 15. Nf3 {[%clk
0:02:48.6]} 15... Kf7 {[%clk 0:02:41]} 16. h4 {[%clk 0:02:40.2]} 16... Bd6
{[%clk 0:02:39.2]} 17. Bd2 {[%clk 0:02:36.2]} 17... b5 {[%clk 0:02:37.8]} 18. b3
{[%clk 0:02:05.5]} 18... bxa4 {[%clk 0:02:34.9]} 19. bxa4 {[%clk 0:02:06.4]}
19... Rhc8 {[%clk 0:02:33.5]} 20. Ke2 {[%clk 0:02:01.1]} 20... Rc4 {[%clk
0:02:33]} 21. Rhb1 {[%clk 0:02:01.6]} 21... Rxa4 {[%clk 0:02:31.1]} 22. Rxa4
{[%clk 0:02:00.2]} 22... Bxa4 {[%clk 0:02:31.6]} 23. Rb7+ {[%clk 0:02:00]} 23...
Kg8 {[%clk 0:02:24.2]} 24. Kd3 {[%clk 0:01:58.3]} 24... Rb8 {[%clk 0:02:15.9]}
25. Rxb8+ {[%clk 0:01:53.4]} 25... Bxb8 {[%clk 0:02:15]} 26. c4 {[%clk
0:01:54.3]} 26... dxc4+ {[%clk 0:02:11.9]} 27. Kxc4 {[%clk 0:01:55.2]} 27... Bc7
{[%clk 0:02:11.3]} 28. d5 {[%clk 0:01:31.5]} 28... Kf7 {[%clk 0:02:09.7]} 29.
Nd4 {[%clk 0:01:31.2]} 29... exd5+ {[%clk 0:02:07.5]} 30. Kxd5 {[%clk
0:01:32.1]} 30... Bd7 {[%clk 0:02:07.5]} 31. f4 {[%clk 0:01:04.7]} 31... Kg6
{[%clk 0:02:02]} 32. g3 {[%clk 0:00:46.8]} 32... Kh5 {[%clk 0:01:58.6]} 33. Nb3
{[%clk 0:00:47.3]} 33... Kg4 {[%clk 0:01:46.5]} 34. Be1 {[%clk 0:00:45.3]} 34...
a4 {[%clk 0:01:33.9]} 35. Nc5 {[%clk 0:00:45.5]} 35... Be8 {[%clk 0:01:34.3]}
36. Kc4 {[%clk 0:00:19.9]} 36... h5 {[%clk 0:01:26.7]} 37. Kb4 {[%clk
0:00:16.8]} 37... Bd6 {[%clk 0:01:26.2]} 38. Kc4 {[%clk 0:00:16.4]} 38... a3
{[%clk 0:01:24.7]} 39. Ne4 {[%clk 0:00:14.2]} 39... a2 {[%clk 0:01:18.7]} 40.
Bc3 {[%clk 0:00:13.7]} 40... Bf7+ {[%clk 0:01:18.6]} 41. Kd4 {[%clk 0:00:14.3]}
41... Bc7 {[%clk 0:01:16.3]} 42. Ba1 {[%clk 0:00:12]} 42... Bb6+ {[%clk
0:01:15.4]} 43. Kd3 {[%clk 0:00:11.5]} 43... Bg6 {[%clk 0:01:15.1]} 0-1

[Event "Late-Titled-Tuesday-Blitz-August-29-2023"]
[Site "Chess.com"]
[Date "2023.08.29"]
[Round "1"]
[White "ToddBryant"]
[Black "albi1999"]
[Result "0-1"]
[WhiteElo "2368"]
[BlackElo "2677"]
[TimeControl "180+1"]
[EndTime "14:06:32 PDT"]
[Termination "albi1999 won by resignation"]

1. e4 {[%clk 0:02:51.1]} 1... c6 {[%clk 0:02:55.3]} 2. d4 {[%clk 0:02:50.5]}
2... d5 {[%clk 0:02:56.2]} 3. f3 {[%clk 0:02:51]} 3... e6 {[%clk 0:02:42.5]} 4.
Nc3 {[%clk 0:02:49]} 4... Bb4 {[%clk 0:02:39.7]} 5. a3 {[%clk 0:02:47.4]} 5...
Bxc3+ {[%clk 0:02:25.3]} 6. bxc3 {[%clk 0:02:48.3]} 6... dxe4 {[%clk 0:02:25.8]}
7. Nh3 {[%clk 0:02:44.7]} 7... c5 {[%clk 0:02:22.9]} 8. fxe4 {[%clk 0:02:37.1]}
8... Nc6 {[%clk 0:02:22.7]} 9. Qg4 {[%clk 0:02:30]} 9... g6 {[%clk 0:02:13.7]}
10. Bg5 {[%clk 0:01:57.1]} 10... Qa5 {[%clk 0:02:11.6]} 11. Bd2 {[%clk
0:01:53.3]} 11... Qa4 {[%clk 0:02:04.8]} 12. dxc5 {[%clk 0:01:31.8]} 12... Qxc2
{[%clk 0:01:58.5]} 13. Bb5 {[%clk 0:01:17.2]} 13... e5 {[%clk 0:01:55.9]} 14.
Qf3 {[%clk 0:01:16.3]} 14... Bxh3 {[%clk 0:01:50.4]} 15. gxh3 {[%clk 0:01:09.6]}
15... O-O-O {[%clk 0:01:48.8]} 16. Rd1 {[%clk 0:01:01.6]} 16... f5 {[%clk
0:01:45.4]} 17. O-O {[%clk 0:00:46.6]} 17... Nf6 {[%clk 0:01:38.2]} 18. Bg5
{[%clk 0:00:39.5]} 18... Rxd1 {[%clk 0:01:35.5]} 19. Rxd1 {[%clk 0:00:40.4]}
19... Nxe4 {[%clk 0:01:33.9]} 20. Bh6 {[%clk 0:00:17.9]} 20... Rd8 {[%clk
0:01:29.5]} 21. Rxd8+ {[%clk 0:00:16.8]} 21... Kxd8 {[%clk 0:01:28.8]} 22. Bxc6
{[%clk 0:00:15.3]} 22... bxc6 {[%clk 0:01:27.3]} 23. Qe3 {[%clk 0:00:12.1]}
23... Qd1+ {[%clk 0:01:10.3]} 24. Kg2 {[%clk 0:00:11.6]} 24... Ke7 {[%clk
0:01:08.8]} 25. Bg5+ {[%clk 0:00:11.3]} 25... Ke6 {[%clk 0:01:08.1]} 26. Bh4
{[%clk 0:00:10.9]} 26... Qd5 {[%clk 0:01:03.9]} 27. Qf3 {[%clk 0:00:07.2]} 27...
Qd2+ {[%clk 0:00:59.9]} 28. Kg1 {[%clk 0:00:06.7]} 28... Qxc3 {[%clk 0:00:57]}
29. Qe2 {[%clk 0:00:06.1]} 29... Qxc5+ {[%clk 0:00:55.8]} 30. Kh1 {[%clk
0:00:04.9]} 30... Qc1+ {[%clk 0:00:55.1]} 31. Kg2 {[%clk 0:00:05.5]} 31... Qd2
{[%clk 0:00:55.5]} 32. Qxd2 {[%clk 0:00:05.1]} 32... Nxd2 {[%clk 0:00:56.4]} 33.
Bf2 {[%clk 0:00:04.5]} 33... a6 {[%clk 0:00:56.5]} 34. Be3 {[%clk 0:00:03.6]}
34... Nc4 {[%clk 0:00:57.4]} 35. Bc5 {[%clk 0:00:03.7]} 35... Kd5 {[%clk
0:00:57.4]} 36. Bf8 {[%clk 0:00:04.2]} 36... e4 {[%clk 0:00:57.5]} 37. Kf2
{[%clk 0:00:04.6]} 37... f4 {[%clk 0:00:57.7]} 38. Ke2 {[%clk 0:00:05.2]} 38...
c5 {[%clk 0:00:57.4]} 39. Kf2 {[%clk 0:00:05]} 39... Nxa3 {[%clk 0:00:57.2]} 0-1

[Event "Late-Titled-Tuesday-Blitz-August-29-2023"]
[Site "Chess.com"]
[Date "2023.08.29"]
[Round "1"]
[White "WindWhistler11"]
[Black "FaustinoOro"]
[Result "0-1"]
[WhiteElo "2482"]
[BlackElo "2906"]
[TimeControl "180+1"]
[EndTime "14:06:34 PDT"]
[Termination "FaustinoOro won by resignation"]

1. c4 {[%clk 0:02:59.5]} 1... e5 {[%clk 0:02:58.7]} 2. Nc3 {[%clk 0:02:59.5]}
2... Nf6 {[%clk 0:02:58.4]} 3. Nf3 {[%clk 0:03:00.2]} 3... Nc6 {[%clk
0:02:57.8]} 4. e4 {[%clk 0:03:00.6]} 4... Bb4 {[%clk 0:02:55.7]} 5. d3 {[%clk
0:02:59.1]} 5... O-O {[%clk 0:02:55.4]} 6. Be2 {[%clk 0:02:58.5]} 6... d6 {[%clk
0:02:53.8]} 7. O-O {[%clk 0:02:58.3]} 7... Bxc3 {[%clk 0:02:52.5]} 8. bxc3
{[%clk 0:02:57.7]} 8... Ne7 {[%clk 0:02:51.8]} 9. Nh4 {[%clk 0:02:40.2]} 9...
Ng6 {[%clk 0:02:23.2]} 10. Bg5 {[%clk 0:02:32.3]} 10... h6 {[%clk 0:02:11]} 11.
Nxg6 {[%clk 0:02:29.7]} 11... fxg6 {[%clk 0:02:08]} 12. Be3 {[%clk 0:02:29.4]}
12... g5 {[%clk 0:02:04.8]} 13. c5 {[%clk 0:02:25.6]} 13... d5 {[%clk
0:02:01.5]} 14. Qb3 {[%clk 0:02:05.5]} 14... Kh8 {[%clk 0:01:50.1]} 15. f3
{[%clk 0:02:03]} 15... c6 {[%clk 0:01:45.8]} 16. Rad1 {[%clk 0:01:56.4]} 16...
Qc7 {[%clk 0:01:39.9]} 17. exd5 {[%clk 0:01:16.8]} 17... cxd5 {[%clk 0:01:34.3]}
18. d4 {[%clk 0:01:16.8]} 18... Be6 {[%clk 0:01:16.3]} 19. Bd3 {[%clk
0:00:58.7]} 19... e4 {[%clk 0:01:07.3]} 20. fxe4 {[%clk 0:00:54.7]} 20... Ng4
{[%clk 0:01:03.9]} 21. e5 {[%clk 0:00:34.2]} 21... Nxe3 {[%clk 0:01:03.2]} 22.
Rxf8+ {[%clk 0:00:35]} 22... Rxf8 {[%clk 0:01:02.6]} 23. Re1 {[%clk 0:00:35.6]}
23... Qf7 {[%clk 0:00:57.8]} 24. Qb2 {[%clk 0:00:30]} 24... Nc4 {[%clk
0:00:44.5]} 25. Qe2 {[%clk 0:00:28.4]} 25... Qf4 {[%clk 0:00:35.6]} 26. Bb1
{[%clk 0:00:18.7]} 26... Qd2 {[%clk 0:00:27.8]} 27. Rf1 {[%clk 0:00:10]} 0-1

[Event "Late-Titled-Tuesday-Blitz-August-29-2023"]
[Site "Chess.com"]
[Date "2023.08.29"]
[Round "1"]
[White "Aleksandar-Topalov"]
[Black "ftorodent"]
[Result "0-1"]
[WhiteElo "2370"]
[BlackElo "2681"]
[TimeControl "180+1"]
[EndTime "14:06:35 PDT"]
[Termination "ftorodent won on time"]

1. b3 {[%clk 0:02:58.2]} 1... e5 {[%clk 0:02:57.5]} 2. Bb2 {[%clk 0:02:56.6]}
2... Nc6 {[%clk 0:02:57.2]} 3. c4 {[%clk 0:02:55.6]} 3... Nf6 {[%clk 0:02:55.9]}
4. e3 {[%clk 0:02:54.9]} 4... Be7 {[%clk 0:02:52.6]} 5. Nf3 {[%clk 0:02:52.8]}
5... d6 {[%clk 0:02:51.7]} 6. d4 {[%clk 0:02:52.1]} 6... e4 {[%clk 0:02:47]} 7.
d5 {[%clk 0:02:49.2]} 7... exf3 {[%clk 0:02:42.1]} 8. dxc6 {[%clk 0:02:48.5]}
8... bxc6 {[%clk 0:02:41.9]} 9. gxf3 {[%clk 0:02:42.2]} 9... Be6 {[%clk
0:02:37.2]} 10. Rg1 {[%clk 0:02:38.2]} 10... O-O {[%clk 0:02:33.4]} 11. Qc2
{[%clk 0:02:33.2]} 11... Ne8 {[%clk 0:02:30]} 12. Bd3 {[%clk 0:02:28.4]} 12...
g6 {[%clk 0:02:29.3]} 13. Bxg6 {[%clk 0:02:13.2]} 13... fxg6 {[%clk 0:02:27.6]}
14. Rxg6+ {[%clk 0:02:13]} 14... Kf7 {[%clk 0:02:27.2]} 15. Rh6 {[%clk
0:01:43.4]} 15... Nf6 {[%clk 0:02:02.4]} 16. Nd2 {[%clk 0:01:22.6]} 16... Rg8
{[%clk 0:01:52.8]} 17. O-O-O {[%clk 0:01:20.7]} 17... Rg6 {[%clk 0:01:49.8]} 18.
Rxg6 {[%clk 0:00:50.8]} 18... hxg6 {[%clk 0:01:49.6]} 19. Rg1 {[%clk 0:00:50.1]}
19... Qg8 {[%clk 0:01:39.4]} 20. f4 {[%clk 0:00:31.5]} 20... Qh7 {[%clk
0:01:34.4]} 21. Nf3 {[%clk 0:00:28.4]} 21... Nd7 {[%clk 0:01:28.3]} 22. Ng5+
{[%clk 0:00:20.6]} 22... Bxg5 {[%clk 0:01:28.2]} 23. Rxg5 {[%clk 0:00:19.1]}
23... Rg8 {[%clk 0:01:00.3]} 24. Qe4 {[%clk 0:00:18]} 24... d5 {[%clk
0:00:54.4]} 25. cxd5 {[%clk 0:00:14]} 25... cxd5 {[%clk 0:00:53.9]} 26. Qa4
{[%clk 0:00:12.4]} 26... Qxh2 {[%clk 0:00:47.5]} 27. Bd4 {[%clk 0:00:08.2]}
27... c5 {[%clk 0:00:43.3]} 0-1

[Event "Late-Titled-Tuesday-Blitz-August-29-2023"]
[Site "Chess.com"]
[Date "2023.08.29"]
[Round "1"]
[White "IngOscarArdila"]
[Black "Meri-Arabidze"]
[Result "0-1"]
[WhiteElo "2301"]
[BlackElo "2602"]
[TimeControl "180+1"]
[EndTime "14:06:37 PDT"]
[Termination "Meri-Arabidze won by resignation"]

1. d4 {[%clk 0:02:36.2]} 1... d5 {[%clk 0:02:59.6]} 2. c4 {[%clk 0:02:35.8]}
2... dxc4 {[%clk 0:03:00]} 3. Qa4+ {[%clk 0:02:35.2]} 3... Nc6 {[%clk
0:02:57.1]} 4. Nf3 {[%clk 0:02:34.6]} 4... a6 {[%clk 0:02:53]} 5. Qxc4 {[%clk
0:02:34.4]} 5... Nf6 {[%clk 0:02:51.4]} 6. Nc3 {[%clk 0:02:24.7]} 6... Bg4
{[%clk 0:02:50.8]} 7. e3 {[%clk 0:02:23.4]} 7... Bxf3 {[%clk 0:02:48.6]} 8. gxf3
{[%clk 0:02:23.2]} 8... e6 {[%clk 0:02:49.5]} 9. Bg2 {[%clk 0:02:15.8]} 9... Ne7
{[%clk 0:02:40.1]} 10. e4 {[%clk 0:02:08.1]} 10... c6 {[%clk 0:02:39.2]} 11. Bg5
{[%clk 0:02:05]} 11... h6 {[%clk 0:02:34.9]} 12. Bh4 {[%clk 0:02:04.2]} 12...
Ng6 {[%clk 0:02:33.7]} 13. Bg3 {[%clk 0:02:04.3]} 13... Nh5 {[%clk 0:02:32.3]}
14. Rd1 {[%clk 0:01:58.6]} 14... Nhf4 {[%clk 0:02:30.6]} 15. O-O {[%clk
0:01:55.7]} 15... Be7 {[%clk 0:02:24.2]} 16. Rfe1 {[%clk 0:01:50.3]} 16... O-O
{[%clk 0:02:20.1]} 17. Ne2 {[%clk 0:01:46.8]} 17... Nxg2 {[%clk 0:02:18.2]} 18.
Kxg2 {[%clk 0:01:46.1]} 18... h5 {[%clk 0:02:13.4]} 19. h3 {[%clk 0:01:40.9]}
19... Nh4+ {[%clk 0:02:13.1]} 20. Bxh4 {[%clk 0:01:40.2]} 20... Bxh4 {[%clk
0:02:14]} 21. Ng3 {[%clk 0:01:38.7]} 21... Qg5 {[%clk 0:02:10.9]} 22. Qc5 {[%clk
0:01:36.3]} 22... f5 {[%clk 0:02:05.4]} 23. Qe5 {[%clk 0:01:25.6]} 23... Rf6
{[%clk 0:01:59.6]} 24. Kh1 {[%clk 0:01:20]} 24... Bxg3 {[%clk 0:01:55.1]} 25.
fxg3 {[%clk 0:01:19.9]} 25... Raf8 {[%clk 0:01:50.9]} 26. Kh2 {[%clk 0:00:36.7]}
26... Qg6 {[%clk 0:01:46]} 27. f4 {[%clk 0:00:35.1]} 27... h4 {[%clk 0:01:41.3]}
28. Rg1 {[%clk 0:00:34.7]} 28... fxe4 {[%clk 0:01:35]} 29. gxh4 {[%clk
0:00:33.8]} 29... Qf5 {[%clk 0:01:35.1]} 30. Qxf5 {[%clk 0:00:14.4]} 30... Rxf5
{[%clk 0:01:35]} 31. Rg6 {[%clk 0:00:12.4]} 31... Rxf4 {[%clk 0:01:29.5]} 32.
Rdg1 {[%clk 0:00:10.8]} 32... Rf2+ {[%clk 0:01:28.6]} 33. Kh1 {[%clk 0:00:11.3]}
33... R8f7 {[%clk 0:01:26.1]} 34. Rxe6 {[%clk 0:00:11.4]} 34... Rxb2 {[%clk
0:01:24.9]} 35. Re8+ {[%clk 0:00:10.5]} 35... Kh7 {[%clk 0:01:24.6]} 36. Rg2
{[%clk 0:00:10.3]} 36... Rb1+ {[%clk 0:01:13.2]} 37. Kh2 {[%clk 0:00:10.6]}
37... Re1 {[%clk 0:01:12.9]} 38. Rg4 {[%clk 0:00:09.3]} 38... e3 {[%clk
0:01:12.5]} 39. Rg3 {[%clk 0:00:09.1]} 39... Rf2+ {[%clk 0:01:11]} 40. Rg2
{[%clk 0:00:09.5]} 40... Ree2 {[%clk 0:01:05]} 41. Rxf2 {[%clk 0:00:08]} 41...
exf2 {[%clk 0:01:02.9]} 0-1

[Event "Late-Titled-Tuesday-Blitz-August-29-2023"]
[Site "Chess.com"]
[Date "2023.08.29"]
[Round "1"]
[White "Djager97"]
[Black "hsd2016"]
[Result "1-0"]
[WhiteElo "2585"]
[BlackElo "2277"]
[TimeControl "180+1"]
[EndTime "14:06:44 PDT"]
[Termination "Djager97 won on time"]

1. e4 {[%clk 0:03:00.9]} 1... c5 {[%clk 0:02:51.3]} 2. Nf3 {[%clk 0:03:00.6]}
2... e6 {[%clk 0:02:50.8]} 3. d4 {[%clk 0:03:00]} 3... cxd4 {[%clk 0:02:51.7]}
4. Nxd4 {[%clk 0:03:00.9]} 4... a6 {[%clk 0:02:52.4]} 5. Nc3 {[%clk 0:03:01.4]}
5... Nc6 {[%clk 0:02:52.4]} 6. Nxc6 {[%clk 0:03:00.5]} 6... bxc6 {[%clk
0:02:52.3]} 7. Bd3 {[%clk 0:03:01.2]} 7... d5 {[%clk 0:02:52.6]} 8. O-O {[%clk
0:02:59.2]} 8... Nf6 {[%clk 0:02:52.9]} 9. Qf3 {[%clk 0:02:46]} 9... Be7 {[%clk
0:02:44.3]} 10. Qg3 {[%clk 0:02:45.8]} 10... O-O {[%clk 0:02:08.9]} 11. Bh6
{[%clk 0:02:44.7]} 11... Ne8 {[%clk 0:01:53.4]} 12. Bf4 {[%clk 0:02:33]} 12...
Bb7 {[%clk 0:01:45.5]} 13. Rad1 {[%clk 0:02:30.6]} 13... Bd6 {[%clk 0:01:36.1]}
14. e5 {[%clk 0:02:20.7]} 14... Be7 {[%clk 0:01:32.4]} 15. Qh3 {[%clk 0:02:05]}
15... g6 {[%clk 0:01:31]} 16. Ne2 {[%clk 0:01:20.3]} 16... c5 {[%clk 0:01:23.7]}
17. c4 {[%clk 0:01:15.1]} 17... Qc8 {[%clk 0:01:20.7]} 18. Qh6 {[%clk
0:01:04.1]} 18... d4 {[%clk 0:00:58.7]} 19. Ng3 {[%clk 0:01:00.8]} 19... Ng7
{[%clk 0:00:50.5]} 20. h4 {[%clk 0:00:50.7]} 20... Qd8 {[%clk 0:00:32.8]} 21. h5
{[%clk 0:00:47.2]} 21... Rb8 {[%clk 0:00:24.8]} 22. f3 {[%clk 0:00:43.5]} 22...
Bc6 {[%clk 0:00:23.7]} 23. b3 {[%clk 0:00:44.1]} 23... Bh4 {[%clk 0:00:16.2]}
24. Kf2 {[%clk 0:00:18.7]} 1-0

[Event "Late-Titled-Tuesday-Blitz-August-29-2023"]
[Site "Chess.com"]
[Date "2023.08.29"]
[Round "1"]
[White "Young_Catalan_Player09"]
[Black "Mops_2004"]
[Result "0-1"]
[WhiteElo "2439"]
[BlackElo "2784"]
[TimeControl "180+1"]
[EndTime "14:06:46 PDT"]
[Termination "Mops_2004 won by resignation"]

1. e4 {[%clk 0:02:59.8]} 1... g6 {[%clk 0:02:59.4]} 2. h4 {[%clk 0:02:59.6]}
2... Nf6 {[%clk 0:02:58.9]} 3. e5 {[%clk 0:02:59.4]} 3... Nh5 {[%clk 0:02:58.7]}
4. d4 {[%clk 0:02:57.6]} 4... d6 {[%clk 0:02:58.6]} 5. Nf3 {[%clk 0:02:54.7]}
5... Bg4 {[%clk 0:02:54]} 6. Bc4 {[%clk 0:02:42.8]} 6... e6 {[%clk 0:02:49.7]}
7. Bg5 {[%clk 0:02:43.2]} 7... Be7 {[%clk 0:02:48.2]} 8. Bxe7 {[%clk 0:02:41.2]}
8... Qxe7 {[%clk 0:02:48]} 9. Nbd2 {[%clk 0:02:41.2]} 9... dxe5 {[%clk 0:02:45]}
10. dxe5 {[%clk 0:02:40.9]} 10... Nd7 {[%clk 0:02:40.5]} 11. Qe2 {[%clk
0:02:39.3]} 11... O-O-O {[%clk 0:02:02.9]} 12. O-O-O {[%clk 0:02:38.7]} 12...
Nb6 {[%clk 0:01:44.5]} 13. Bb3 {[%clk 0:02:35]} 13... Ng7 {[%clk 0:01:19.1]} 14.
Ne4 {[%clk 0:02:31.5]} 14... Rxd1+ {[%clk 0:01:12.2]} 15. Rxd1 {[%clk
0:02:30.8]} 15... Rd8 {[%clk 0:01:13.1]} 16. Nf6 {[%clk 0:02:28.7]} 16... Bxf3
{[%clk 0:01:11.7]} 17. Qxf3 {[%clk 0:02:28.7]} 17... h5 {[%clk 0:01:08.5]} 18.
Qe4 {[%clk 0:02:14.5]} 18... Nf5 {[%clk 0:01:06.9]} 19. f3 {[%clk 0:02:13.4]}
19... c6 {[%clk 0:00:59.9]} 20. g4 {[%clk 0:02:01.5]} 20... hxg4 {[%clk
0:00:59.7]} 21. fxg4 {[%clk 0:02:02.2]} 21... Rxd1+ {[%clk 0:00:56.7]} 22. Kxd1
{[%clk 0:02:02.1]} 22... Nxh4 {[%clk 0:00:56.9]} 23. Qf4 {[%clk 0:01:53]} 23...
a5 {[%clk 0:00:34.5]} 24. Qh6 {[%clk 0:01:43.5]} 24... Nf3 {[%clk 0:00:26.2]}
25. Qf4 {[%clk 0:01:31.6]} 25... Qd8+ {[%clk 0:00:26]} 26. Kc1 {[%clk
0:01:26.7]} 26... Nd4 {[%clk 0:00:26.2]} 27. Qf1 {[%clk 0:01:09.8]} 27... a4
{[%clk 0:00:25.8]} 28. Bc4 {[%clk 0:01:10.2]} 28... Qh8 {[%clk 0:00:21.2]} 29.
Qd3 {[%clk 0:01:04.5]} 29... Qh6+ {[%clk 0:00:19.2]} 30. Kd1 {[%clk 0:01:02.3]}
30... Qh1+ {[%clk 0:00:17.9]} 31. Kd2 {[%clk 0:01:01.9]} 31... Qh2+ {[%clk
0:00:18.1]} 32. Kc3 {[%clk 0:01:01.3]} 32... c5 {[%clk 0:00:13.8]} 33. Bb5
{[%clk 0:00:51.7]} 33... Qxe5 {[%clk 0:00:13.2]} 34. Nd7 {[%clk 0:00:40]} 34...
Nxb5+ {[%clk 0:00:11.7]} 0-1

[Event "Late-Titled-Tuesday-Blitz-August-29-2023"]
[Site "Chess.com"]
[Date "2023.08.29"]
[Round "1"]
[White "wgraif"]
[Black "ZuraTqebuchava"]
[Result "1-0"]
[WhiteElo "2545"]
[BlackElo "2149"]
[TimeControl "180+1"]
[EndTime "14:06:46 PDT"]
[Termination "wgraif won on time"]

1. e4 {[%clk 0:02:50.4]} 1... e5 {[%clk 0:03:00.1]} 2. Nf3 {[%clk 0:02:48]} 2...
Nc6 {[%clk 0:02:58.3]} 3. d4 {[%clk 0:02:48.6]} 3... exd4 {[%clk 0:02:55.5]} 4.
c3 {[%clk 0:02:49.3]} 4... d6 {[%clk 0:02:53.7]} 5. cxd4 {[%clk 0:02:42.5]} 5...
Bg4 {[%clk 0:02:51.3]} 6. d5 {[%clk 0:02:37.3]} 6... Ne5 {[%clk 0:02:49.2]} 7.
Bb5+ {[%clk 0:02:13.7]} 7... c6 {[%clk 0:02:33.9]} 8. dxc6 {[%clk 0:01:41.3]}
8... bxc6 {[%clk 0:02:33.7]} 9. Be2 {[%clk 0:01:12.9]} 9... Bxf3 {[%clk
0:02:26.8]} 10. Bxf3 {[%clk 0:01:11.3]} 10... Nf6 {[%clk 0:02:26.4]} 11. O-O
{[%clk 0:01:08.3]} 11... Be7 {[%clk 0:02:24.9]} 12. Be2 {[%clk 0:01:06.9]} 12...
Qb6 {[%clk 0:02:11.6]} 13. Nc3 {[%clk 0:01:03.5]} 13... O-O {[%clk 0:02:07.1]}
14. Kh1 {[%clk 0:01:00.7]} 14... c5 {[%clk 0:01:46.6]} 15. f4 {[%clk 0:00:42.6]}
15... Nc6 {[%clk 0:01:46.3]} 16. Bd3 {[%clk 0:00:27.6]} 16... Rad8 {[%clk
0:01:36]} 17. b3 {[%clk 0:00:26.7]} 17... Nd4 {[%clk 0:01:23.2]} 18. Ne2 {[%clk
0:00:25.7]} 18... d5 {[%clk 0:01:08.3]} 19. e5 {[%clk 0:00:24]} 19... Ne4 {[%clk
0:01:08.1]} 20. Nxd4 {[%clk 0:00:22.8]} 20... cxd4 {[%clk 0:01:08]} 21. Bb2
{[%clk 0:00:22.1]} 21... Bb4 {[%clk 0:00:59.2]} 22. Qh5 {[%clk 0:00:17.4]} 22...
Bc3 {[%clk 0:00:39.2]} 23. Ba3 {[%clk 0:00:16.9]} 23... Rfe8 {[%clk 0:00:02.9]}
24. Rad1 {[%clk 0:00:16]} 1-0